Cogmind - Beta 11.1 @@@ ROGUE MODE // 2022.11.01 @ 00:25:28 Player: JoshKwa Result: Destroyed by G-34 Mercenary with Small Laser Performance ------------- Evolutions (1) 500 Regions Visited (3) 600 Robots Destroyed (12) 60 Value Destroyed (189) 189 Prototype IDs (1) 20 Alien Tech Used (0) 0 Bonus (0) 0 TOTAL SCORE: 1369 Bonus ------- None Cogmind --------- Core Integrity 0/400 Matter 300/300 Energy 565/565 System Corruption 0% Temperature Cool (6) Movement Treading (240) Ox1 Location -9/Materials Parts ------- > --- POWER (2) -------- Ion Engine Improved Ion Engine > --- PROPULSION (2) --- Light Treads > --- UTILITY (3) ------ Disposable Heat Sink Small Storage Unit Medium Battery > --- WEAPON (2) ------- Light Assault Rifle Light Assault Rifle > --- INVENTORY (8) ---- (None) Peak State ------------ > --- POWER ------------ Ion Engine > --- PROPULSION ------- (None) > --- UTILITY ---------- Small Storage Unit Medium Battery Experimental Sensor Array > --- WEAPON ----------- EM Shotgun > --- INVENTORY -------- Disposable Heat Sink [Rating: 14] Favorites ----------- Power Light Ion Engine Engine Light Ion Engine Propulsion Flight Unit Treads Light Treads Wheel Wheel Flight Unit Flight Unit Utility Small Storage Unit Device Experimental Sensor Array Storage Small Storage Unit Weapon Light Assault Rifle Energy Gun EM Pulse Gun Ballistic Gun Light Assault Rifle Build | -11 -10 -10 -9 ------- Run | Scr Mat Min Mat Slots Evolved 2 | . . . 2 Power 1 | . . . 1 Propulsion . | . . . . Utility 1 | . . . 1 Weapon . | . . . . Parts Attached 26 | 6 1 7 12 Power 8 | 1 . 1 6 Engine 8 | 1 . 1 6 Core . | . . . . Reactor . | . . . . Propulsion 5 | 2 . 2 1 Treads 1 | . . . 1 Leg . | . . . . Wheel 2 | 2 . . . Hover . | . . . . Flight 2 | . . 2 . Utility 6 | 1 1 2 2 Device 2 | . . 1 1 Storage 4 | 1 1 1 1 Processor . | . . . . Hackware . | . . . . Protection . | . . . . Artifact . | . . . . Weapon 7 | 2 . 2 3 Energy Gun 4 | 2 . 1 1 Energy Cannon . | . . . . Ballistic Gun 3 | . . 1 2 Ballistic Cannon . | . . . . Launcher . | . . . . Special Weapon . | . . . . Impact Weapon . | . . . . Slashing Weapon . | . . . . Piercing Weapon . | . . . . Special Melee Weapon . | . . . . Unidentified Prototypes 1 | . . 1 . Parts Lost 8 | . . 2 6 Power 3 | . . 1 2 Propulsion 2 | . . . 2 Utility 1 | . . . 1 Weapon 2 | . . 1 1 Highest Loss Streak 6 | . . 2 6 To Critical Strikes . | . . . . Average Slot Usage (%) 66 | . 91 71 57 Engine 12 | . 14 10 13 Treads 1 | . . . 2 Wheel 7 | . 28 10 . Flight 9 | . . 17 4 Device 3 | . . . 6 Storage 19 | . 19 19 18 Energy Gun 5 | . 28 6 . Ballistic Gun 8 | . . 5 11 Naked Turns . | . . . . Heaviest Build 22 | 11 13 14 22 Greatest Support 20 | 20 20 20 20 Greatest Overweight (x) 7 | . . 1 7 Average Overweight (x) . | . . . . Largest Inventory Capacity 8 | 8 8 8 8 Average Capacity 7 | 7 8 8 8 Most Carried 6 | 5 3 6 4 Average Carried 1 | 2 2 1 1 Final Capacity 8 | 8 8 8 8 Final Carried 2 | 2 2 1 . Class Distribution -------------------- 79% | Mutant 20% | Scavenger-Mutant Dominant Class ---------------- Mutant | -10/Materials Mutant | -10/Mines Mutant | -9/Materials Resources | -11 -10 -10 -9 ----------- Run | Scr Mat Min Mat Matter Collected 451 | 199 . 78 174 Remotely . | . . . . Salvage Created 228 | . . 53 175 Parts 26 | . . 7 19 Haulers Intercepted . | . . . . Recyclers Shooed . | . . . . Parts Field Recycled . | . . . . Retrieved Matter . | . . . . Parts Self-Destructed . | . . . . Prevented . | . . . . Kills | -11 -10 -10 -9 ------- Run | Scr Mat Min Mat Combat Hostiles Destroyed 12 | . . 4 8 Guns 9 | . . 2 7 AOE 3 | . . 2 1 Classes Destroyed 3 | . . 1 2 Swarmer 10 | . . 4 6 Grunt 1 | . . . 1 Sentry 1 | . . . 1 Best Kill Streak 5 | . . 3 5 Combat Bots Only 5 | . . 3 5 Max Kills in Single Turn 2 | . . 2 2 Gunslinging . | . . . . Exploded 2 | . . 2 1 Melee . | . . . . Uniques/NPCs Destroyed . | . . . . Combat | -11 -10 -10 -9 -------- Run | Scr Mat Min Mat Damage Taken 1131 | . 44 266 821 Core 485 | . . 77 408 Absorbed by Shields . | . . . . Core Remaining (%) 84 | 100 . 69 . Volleys Fired 32 | . . 11 21 Largest 2 | . . 2 2 Hottest 60 | . . 60 45 Shots Fired 42 | . . 14 28 Gun 42 | . . 14 28 Cannon . | . . . . Launcher . | . . . . Special . | . . . . Kinetic 25 | . . 3 22 Thermal . | . . . . Explosive . | . . . . Electromagnetic 17 | . . 11 6 Robot Hit Streak 7 | . . 2 7 Robot Miss Streak 2 | . . 2 2 Penetration Max . | . . . . Secondary Targets . | . . . . Shots Hit Robots 31 | . . 7 24 Core Hits 17 | . . 4 13 Critical Kills 1 | . . . 1 Critical Parts Destroyed . | . . . . Critical Strikes 1 | . . . 1 Destroy 1 | . . . 1 Melee Attacks . | . . . . Impact . | . . . . Slashing . | . . . . Piercing . | . . . . Sneak Attacks . | . . . . Combat Hostiles . | . . . . Follow-up Attacks . | . . . . Damage Inflicted 452 | . . 191 261 Guns 297 | . . 77 220 Cannons . | . . . . Explosions 155 | . . 114 41 Melee . | . . . . Ramming . | . . . . Kinetic 160 | . . 12 148 Thermal 155 | . . 114 41 Explosive . | . . . . Electromagnetic 137 | . . 65 72 Impact . | . . . . Slashing . | . . . . Piercing . | . . . . Highest Corruption . | . . . . Average Corruption . | . . . . Corruption Purged . | . . . . Corruption Blocked . | . . . . Overload Shots . | . . . . Overflow Damage . | . . . . Projectiles . | . . . . Explosions . | . . . . Melee . | . . . . Knockbacks . | . . . . Impact . | . . . . Kinetic . | . . . . Secondary . | . . . . Self-Inflicted Damage 36 | . . 24 12 Shots 2 | . . 1 1 Rammed . | . . . . Targets Rammed . | . . . . Kicked . | . . . . Crushed . | . . . . Highest Temperature 23 | . . 12 23 Average Temperature 7 | . . 8 7 Received Heat Transfer 195 | . . 6 189 Siege Activations . | . . . . Robots Corrupted . | . . . . Combat Hostiles . | . . . . Parts Fried . | . . . . Impact Corruptions . | . . . . Robots Melted . | . . . . Combat Hostiles . | . . . . Parts Melted . | . . . . Heat Transferred 50 | . . 50 . Parts Sabotaged . | . . . . Parts Stolen . | . . . . Parts Stripped . | . . . . Power Chain Reactions 2 | . . 1 1 Missiles Intercepted . | . . . . Alert | -11 -10 -10 -9 ------- Run | Scr Mat Min Mat Peak Influence 299 | . . 196 299 Initial 76 | . . . 76 Average 129 | . . 88 208 Maximum Alert Level 1 | . . . 1 Low Security (%) 72 | 100 100 100 42 Level 1 27 | . . . 57 Level 2 . | . . . . Level 3 . | . . . . Level 4 . | . . . . Level 5 . | . . . . High Security . | . . . . Max Security . | . . . . Squads Dispatched 1 | . . . 1 Investigation . | . . . . Extermination . | . . . . Reinforcement 1 | . . . 1 Assault . | . . . . Garrison . | . . . . Intercept . | . . . . Searches Triggered . | . . . . Construction Impeded . | . . . . Haulers Reinforced . | . . . . Active Scanning Responses . | . . . . Cargo Convoy Interrupts . | . . . . Stealth | -11 -10 -10 -9 --------- Run | Scr Mat Min Mat Distress Signals 1 | . . . 1 Communications Jammed . | . . . . Distress Signals . | . . . . Times Spotted 28 | . . 13 15 Peak Tracking Total 7 | . . 7 6 Tactical Retreats 4 | . . 2 2 Traps | -11 -10 -10 -9 ------- Run | Scr Mat Min Mat Traps Triggered 1 | . 1 . . Indirectly . | . . . . Trap Hack Attempts . | . . . . Triggered . | . . . . Disarmed . | . . . . Reprogrammed . | . . . . Reused . | . . . . Traps Extracted . | . . . . Installed . | . . . . Triggered . | . . . . Machines | -11 -10 -10 -9 ---------- Run | Scr Mat Min Mat Machines Disabled 1 | . . 1 . Max in Single Turn 1 | . . 1 . Machines Sabotaged . | . . . . Garrisons Compromised . | . . . . Overloaded Fab Kills . | . . . . Hacking | -11 -10 -10 -9 --------- Run | Scr Mat Min Mat Machines Accessed . | . . . . Terminals . | . . . . Fabricators . | . . . . Repair Stations . | . . . . Recycling Units . | . . . . Scanalyzers . | . . . . Garrison Access . | . . . . Total Hacks . | . . . . Successful . | . . . . Failed . | . . . . Catastrophic . | . . . . Database Lockouts . | . . . . Manual . | . . . . Terminals . | . . . . Fabricators . | . . . . Repair Stations . | . . . . Recycling Units . | . . . . Scanalyzers . | . . . . Garrison Access . | . . . . Terminal Hacks . | . . . . Fabricator Hacks . | . . . . Repair Station Hacks . | . . . . Recycling Unit Hacks . | . . . . Scanalyzer . | . . . . Garrison Access Hacks . | . . . . Unauthorized Hacks . | . . . . Terminals . | . . . . Fabricators . | . . . . Repair Stations . | . . . . Recycling Units . | . . . . Scanalyzers . | . . . . Garrison Access . | . . . . Data Cores Recovered . | . . . . Used . | . . . . Hacking Detections . | . . . . Full Trace Events . | . . . . Feedback Events . | . . . . Feedback Blocked . | . . . . Robot Schematics Acquired . | . . . . Robots Built . | . . . . Authchips . | . . . . Time . | . . . . Total Robot Build Rating . | . . . . Part Schematics Acquired . | . . . . Parts Built . | . . . . Authchips . | . . . . Time . | . . . . Total Part Build Rating . | . . . . Parts Repaired . | . . . . Time . | . . . . Parts Recycled . | . . . . Recycled Matter . | . . . . Retrieved Matter . | . . . . Retrieved Components . | . . . . Parts Scanalyzed . | . . . . Part Schematics Acquired . | . . . . Parts Damaged . | . . . . Bothacking | -11 -10 -10 -9 ------------ Run | Scr Mat Min Mat Used RIF Installer . | . . . . Robots Hacked . | . . . . Non-combat . | . . . . Combat . | . . . . Robot Hacks Applied . | . . . . Relay Couplers Released . | . . . . Fabnet Peak Effective % . | . . . . Robots Rewired . | . . . . Allies Hacked . | . . . . Hacks Repelled . | . . . . Allies | -11 -10 -10 -9 -------- Run | Scr Mat Min Mat Total Allies . | . . . . Largest Group . | . . . . Highest-Rated Group . | . . . . Highest-Rated Ally . | . . . . Total Orders . | . . . . Ally Attacks . | . . . . Total Damage . | . . . . Kills . | . . . . Allies Corrupted . | . . . . Allies Melted . | . . . . Intel | -11 -10 -10 -9 ------- Run | Scr Mat Min Mat Robot Analysis Total . | . . . . Derelict Logs Recovered 1 | . . 1 . Drone Launches . | . . . . Drone Recoveries . | . . . . Exploration | -11 -10 -10 -9 ------------- Run | Scr Mat Min Mat Turns Passed 527 | 47 49 183 248 Spaces Moved 585 | 47 59 301 178 Core 40 | 13 . . 27 Treads 27 | . . . 27 Legs . | . . . . Wheels 153 | 34 59 60 . Hover . | . . . . Flight 365 | . . 241 124 Fastest Speed 37 | 50 80 37 37 Average Speed 68 | 71 80 46 100 Slowest Speed 400 | 80 80 117 400 Overloaded Moves . | . . . . Propulsion Burnouts . | . . . . Robots Hopped 7 | . . 7 . Cave-ins Triggered . | . . . . Exploration Rate (%) 26 | 4 16 69 17 Regions Visited 3 Branch Regions 1 Pre-discovered Areas 1 | . . 1 . Known Exits Taken . | . . . . Unknown Exits Taken 3 | 1 1 1 . Scrap Searched 1 | . . 1 . Spaces Dug . | . . . . Terrain Destroyed 8 | . . 2 6 Melee . | . . . . Projectile . | . . . . AOE 8 | . . 2 6 Terrain Rammed . | . . . . Walls Destroyed . | . . . . Machines Disabled . | . . . . Actions | -11 -10 -10 -9 --------- Run | Scr Mat Min Mat Total 672 | 60 60 328 224 Wait . | . . . . Move 568 | 46 58 286 178 Hop 7 | . . 7 . Pick Up 24 | 8 1 4 11 Fast Attach . | . . . . Attach 23 | 6 1 6 10 Detach 7 | . . 7 . Swap 3 | . . 1 2 Drop 8 | . . 6 2 Fire 32 | . . 11 21 Melee . | . . . . Ram . | . . . . Kick . | . . . . Crush . | . . . . Escape Stasis . | . . . . Rewire . | . . . . Trap . | . . . . Miscellaneous . | . . . . Route ------- -11/Scrapyard -10/Materials -10/Mines -9/Materials History --------- Turn | Location | Event 10 | -11/Scrapyard | Discovered new exit (range 15) 48 | -11/Scrapyard | Entered Materials 91 | -10/Materials | Discovered new exit (range 8) 97 | -10/Materials | Entered Mines 185 | -10/Mines | Learned location of Storage (-8) 269 | -10/Mines | Found a damaged Exp. Sensor Array with a note attached 270 | -10/Mines | Found Prototype Device 271 | -10/Mines | Identified Exp. Sensor Array 275 | -10/Mines | Discovered new exit (range 12) 280 | -10/Mines | Entered Materials 280 | -9/Materials | Evolved 2 slots: Power x1, Utility x1 311 | -9/Materials | Build established: Mutant 390 | -9/Materials | Core integrity fell below 50% 415 | -9/Materials | Lost 6 parts (2p2n1u1w) 415 | -9/Materials | Core integrity fell below 20% 528 | -9/Materials | Destroyed by G-34 Mercenary with Small Laser Last Messages --------------- 00395_ U-05 Engineer lays Concrete. 00396_ U-05 Engineer builds a Wall. 00402_ K-01 Serf collects debris. 00407_ Acquired 17 matter. 00411_ Acquired Lgt. Ion Engine. 00414_ Acquired Lgt. Assault Rifle. 00422_ Y-45 Defender destroyed. 00431_ K-01 Serf collects debris. 00432_ G-34 Mercenary suffers critical hit (Destroy). 00432_ G-34 Mercenary destroyed. 00440_ Acquired 53 matter. 00445_ Acquired Imp. Ion Engine. 00449_ Acquired Ion Engine. 00454_ Dropped Lgt. Ion Engine. 00455_ Acquired 43 matter. 00463_ Acquired Lgt. Treads. 00467_ R-06 Scavenger collects Sml. Laser. 00479_ Acquired 13 matter. 00486_ Acquired 3 matter. 00491_ W-16 Scout sends out distress signal. Map ----- +----------------------------------------------------+ | ?????????????????????????????????????????????????? | | ?????????????????????????????????????????????????? | | ?????????????????????????????????????????????????? | | ?????????????????????????????????????????????????? | | ?????????????????????????????????????????????????? | | ?????????????????????????????????????????????????? | | ?????????????????????????????????????????????????? | | ?????????????????????????????????????????????????? | | ?????????????????????????????????????????????????? | | ?????????????????????????????????????????????????? | | ?????????????????????????????????????????????????? | | ?????????????????????????????????????????????????? | | ?????????????????????????????????????????????????? | | ?????????????????????????????????????????????????? | | ?????????????????????????????????????????????????? | | ?????????????????????????????????????????????????? | | ?????????????????????????????????????????????????? | | ?????????????????????????????????????????????????? | | ???????????????????????????+?????????????????????? | | ??????????????????????????? ?????????????????????? | | ?????????????????????###### #????????????????????? | | ?????????????????????# # #????????????????????? | | ?????????????????????# "" # #????????????????????? | | ?????????????????????# "T + ????????????????????? | | ?????????????????????# "" # #????????????????????? | | ?????????????????????# @# #????????????????????? | | ?????????????????????# ! # #????????????????????? | | ?????????????????????# # #????????????????????? | | ?????????????????????#] g# #????????????????????? | | ?????????????????????# + #????????????????????? | | ?????????????????????###### #????????????????????? | | ???????????###????#####??## ##???????????????????? | | ?????#????# ############ ########????????????? | | #### #=!! + [ % T ?????? | | #????# ###+######## ########????????????? | | ####?????# ##* == ##?###+####?????????????????? | | #????????# ##* ! #??# #?????????????????? | | /#####?????# ## =!"" #??# #?????????????????? | | #?????# ## "" #??# #?????????????????? | | """ ####### ## """ #??# " " #?????????????????? | | """ + + #??# "R" #?????????????????? | | """ #### ########??# """ #?????????????????? | | #??#! !#????????########?????????????????? | | #??#! !#?????????????????????????????????? | | #??##!!!!##?????????????????????????????????? | | #???######??????????????????????????????????? | | #####????????????????????????????????????????????? | | | | | | | +----------------------------------------------------+ Best States ------------- Heat Dissipation 28 Coolant Potential 50 Energy Generation 17 Energy Capacity 565 Matter Stores 300 Matter Capacity 300 Sight Range 16 Robot Scan Range 20 Terrain Scan Density 10 Evasion (%) 62 Recoil Reduction 1 Item Schematics ----------------- None Robot Schematics ------------------ None Fabricated ------------ Nothing Alien Tech Used ----------------- None Achievements -------------- None Challenges ------------ None Game ------ Seed GrenadeAntimatterTerminator Manual? 0 Play Time 00:09:39 Cumulative 10.4 hours Start 2022.11.01 @ 00:17:45 End 2022.11.01 @ 00:25:28 Sessions 1 Manual Loads 0 Difficulty Rogue Special Mode None Game No. 34 Rogue 34 Adventurer 0 Explorer 0 Win Type - Total 0 Types 0/0/0/0/0/0/0/0/0 Lore% 13 Gallery% 18 Achievement% 16 Wizard Run 0 Options --------- ASCII 0 Keyboard 0 Movement Numpad Keybinds 0 Fullscreen 1 Font 18/SmallcapsGlow Map View 76x50 Tactical HUD 1 Map Filters NONE Filters NONE Steam 1 RUN: dce4b0be-76dc-4e34-b0eb-258a1f6dbc27